bitfinex-derivatives/quotes_ETHF0:USTF0_20210102
["timestamp","ask_amount","ask_price","bid_price","bid_amount"]
[1609609060993,6.01438,774.97,774.96,23.68297733]
[1609609061193,20.63770977,774.97,774.96,23.68297733]
[1609609062495,20.63770977,774.97,774.83,26.84034145]
[1609609063496,20.63770977,774.97,774.85,26.84056458]
[1609609063497,20.63768576,774.97,774.85,26.84056458]
[1609609063695,14.62332977,774.96,774.85,26.84056458]
[1609609065305,14.62332977,774.96,774.87,26.84077082]
[1609609066105,14.62332977,774.96,774.81,6.01438]
[1609609066106,14.62332977,774.96,774.86,26.84087568]
[1609609067507,14.62332977,774.96,774.85,26.84100917]
[1609609068309,14.62332977,774.96,774.84,26.84123211]
[1609609069010,14.62332977,774.96,774.89,6.01438]
[1609609071515,14.62331938,774.96,774.89,6.01438]
[1609609073215,14.62331938,774.96,774.94,26.8373802]
[1609609073815,14.62331938,774.95,774.94,26.8373802]
[1609609074014,14.62331938,774.95,774.89,6.01438]
[1609609076221,14.62331938,775.04,774.89,6.01438]
[1609609077026,14.62330898,775.04,774.89,6.01438]
[1609609077221,14.62330898,775.04,775.01,6.01438]
[1609609078322,14.62330898,775.04,774.96,26.83845692]
[1609609079025,14.62330898,775.04,774.94,26.83990419]
[1609609079227,14.62330898,775.04,775.0,6.01438]
[1609609079425,14.62330898,775.04,774.94,26.83990419]
[1609609083229,6.01438,774.95,774.94,26.83990419]
[1609609083431,20.63768898,774.95,774.94,26.83990419]
[1609609084243,20.63768898,774.95,774.93,6.01438]
[1609609085236,14.62330898,774.95,774.91,26.84148387]
[1609609085433,14.62330898,775.14,774.91,26.84148387]
[1609609085732,6.01438,774.95,774.91,26.84148387]
[1609609085933,6.01438,774.95,774.89,6.01438]
[1609609085934,14.62329866,774.94,774.89,32.85471516]
[1609609088837,6.01438,774.95,774.89,32.85471516]
[1609609089841,6.01438,774.95,774.89,6.01438]
[1609609091039,6.01436961,774.95,774.89,6.01438]
[1609609093342,6.01436961,774.95,774.94,26.83884779]
[1609609094041,14.62329866,775.14,774.94,26.83884779]
[1609609094541,6.01438,774.95,774.89,6.01438]
[1609609097343,20.63767866,774.95,774.89,6.01438]
[1609609098646,20.63766017,774.95,774.89,6.01438]
[1609609099445,6.01436151,774.95,774.89,6.01438]
[1609609101145,14.62329866,775.14,774.89,6.01438]
[1609609102748,6.01438,774.93,774.89,6.01438]
[1609609102949,14.62329866,774.92,774.89,6.01438]
[1609609104248,14.62328837,774.92,774.89,6.01438]
[1609609109860,14.62327808,774.92,774.89,6.01438]
[1609609112467,14.62327808,774.92,774.81,29.99603785]
[1609609113366,75.9049,774.9,774.8,29.99810523]
[1609609113565,14.62327808,774.89,774.8,29.99810523]
[1609609114365,97.8864,774.86,774.85,26.84193129]
[1609609114565,14.62327808,774.86,774.85,26.84193129]
[1609609114766,99.17395808,774.86,774.85,26.84193129]
[1609609115670,99.17395808,774.86,774.77,26.84895061]
[1609609115671,99.17394775,774.86,774.77,26.84895061]
[1609609116769,99.17394775,774.86,774.6,4.029]
[1609609116770,99.17394775,774.86,774.85,20.5322193]
[1609609116968,14.62326775,774.86,774.85,20.5322193]
[1609609117169,92.84226775,774.86,774.85,20.5322193]
[1609609118869,98.85664775,774.86,774.85,20.5322193]
[1609609121072,20.63764775,774.86,774.85,20.5322193]
[1609609121472,20.63764775,774.86,774.81,20.53575722]
[1609609123075,20.63764775,774.86,774.6,4.029]
[1609609123076,20.63764775,774.86,774.73,20.53629309]
[1609609124276,20.63764775,774.86,774.76,20.53640387]
[1609609124874,6.01438,774.77,774.76,20.53640387]
[1609609125074,20.63764775,774.77,774.76,20.53640387]
[1609609125275,25.30864775,774.77,774.74,20.53689401]
[1609609130183,25.30864775,774.77,774.72,20.53763478]
[1609609138001,25.30864775,774.77,774.71,20.53826161]
[1609609138703,25.30864775,774.77,774.6,4.029]
[1609609138704,25.30864775,774.77,774.72,20.53750342]
[1609609141909,25.30864775,774.77,774.6,4.029]
[1609609141910,25.30864775,774.77,774.73,20.53904914]
[1609609143211,25.30864775,774.77,774.64,20.53910396]
[1609609144613,25.30864775,774.77,774.65,20.53920741]
[1609609145013,6.01438,774.66,774.65,20.53920741]
[1609609145213,20.63764775,774.66,774.65,20.53920741]
[1609609145617,20.63764775,774.66,774.51,23.6988859]
[1609609147016,6.01438,774.52,774.51,23.6988859]
[1609609147615,6.01438,774.52,774.36,30.88775464]
[1609609147616,6.01438,774.52,774.49,23.69961966]
[1609609148317,9.43138,774.52,774.49,23.69961966]
[1609609148716,9.43138,774.52,774.36,4.029]
[1609609148717,9.43138,774.52,774.47,23.70054493]
[1609609149118,14.62326775,774.51,774.47,23.70054493]
[1609609150220,14.62326775,774.51,774.44,23.70071659]
[1609609150419,9.43138,774.52,774.44,23.70071659]
[1609609151021,3.417,774.52,774.44,23.70071659]
[1609609151521,6.01438,774.45,774.44,23.70071659]
[1609609151723,6.01438,774.45,774.36,4.029]
[1609609152122,3.417,774.52,774.36,4.029]
[1609609152321,14.62326775,774.74,774.36,4.029]
[1609609153123,4.671,774.77,774.36,4.029]
[1609609153324,14.62326775,774.98,774.36,4.029]
[1609609153524,14.62326775,774.98,774.73,6.01438]
[1609609154724,14.62326775,775.14,774.73,6.01438]
[1609609155324,14.62326775,775.14,774.85,20.53374409]
[1609609155524,6.01438,775.08,774.96,6.01438]
[1609609156526,6.01438,775.08,775.06,20.53137362]
[1609609156926,14.62326775,775.07,775.06,20.53137362]
[1609609157425,14.62326775,775.07,774.6,42.07139221]
[1609609157426,14.62326775,775.07,774.94,23.69127812]
[1609609157626,14.62326775,775.07,774.94,29.70565812]
[1609609157825,14.62326775,775.07,774.94,23.69127812]
[1609609158427,14.62326775,775.07,775.05,20.53347254]
[1609609158827,6.01438,775.08,775.05,20.53347254]
[1609609159430,6.01438,775.08,774.6,12.064]
[1609609159431,6.01438,775.08,775.0,20.53283018]
[1609609160329,14.62326775,775.07,775.0,20.53283018]
[1609609160532,14.62326775,775.07,775.04,20.53328837]
[1609609161332,6.01438,775.08,775.04,20.53328837]
[1609609161932,6.01438,775.08,774.79,6.01438]
[1609609161933,14.62326775,775.07,775.03,20.53368446]
[1609609163834,14.62326775,775.07,775.02,20.53569757]
[1609609164539,14.62326775,775.07,774.95,20.53549236]
[1609609165638,6.01438,774.96,774.95,20.53549236]
[1609609165838,9.46538,774.96,774.95,20.53549236]
[1609609166639,9.46538,774.96,774.94,20.53441396]
[1609609168743,24.08864775,774.96,774.94,20.53441396]
[1609609169745,9.46538,774.96,774.94,20.53441396]
[1609609170546,9.46538,774.96,774.8,4.029]
[1609609170746,9.46538,774.96,774.88,23.69367301]
[1609609171847,3.451,774.96,774.88,23.69367301]
[1609609172047,14.62326775,775.62,774.86,23.69295]
[1609609172847,14.62326775,775.62,775.07,20.53288372]
[1609609173046,14.62326775,775.62,775.08,4.029]
[1609609173646,6.01438,775.09,775.08,4.029]
[1609609174046,10.38938,775.09,775.07,20.53288372]
[1609609174247,10.38938,775.09,774.95,23.69206749]
[1609609175147,10.38938,775.09,774.94,23.69070219]
[1609609176147,10.38938,775.09,774.81,6.01438]
[1609609176148,10.38938,775.09,774.97,23.69041484]
[1609609177651,6.01438,774.99,774.97,23.69041484]
[1609609178049,6.01438,774.99,774.81,32.86351682]
[1609609178050,6.01438,774.99,774.84,26.84610491]
[1609609179450,6.01438,774.99,774.87,26.84509486]
[1609609179649,6.01438,775.07,774.87,26.84509486]
[1609609180851,6.01438,775.07,774.99,6.01438]
[1609609181050,4.375,775.09,774.99,6.01438]
[1609609181252,14.62326775,775.62,774.99,6.01438]
[1609609181653,6.01438,775.29,775.07,6.01438]
[1609609181851,10.85238,775.29,775.07,6.01438]
[1609609183153,10.85238,775.29,775.28,20.52226132]
[1609609183352,4.838,775.29,775.28,20.52226132]
[1609609183551,3.117,775.45,775.28,20.52226132]
[1609609183752,3.117,775.45,775.28,26.53664132]
[1609609184454,3.117,775.45,775.28,6.01438]
[1609609185655,3.117,775.45,775.44,6.01438]
[1609609185853,3.117,775.45,775.22,26.83450807]
[1609609186253,3.117,775.45,775.29,26.8372678]
[1609609187655,3.117,775.45,775.14,34.02359342]
[1609609187656,3.117,775.45,775.33,23.68126827]
[1609609188056,105.6103,775.66,775.33,23.68126827]
[1609609188656,14.62326775,776.06,775.32,23.68074935]
[1609609189559,14.62326775,776.1,775.32,23.68074935]
[1609609189760,6.01438,775.61,775.32,23.68074935]
[1609609189959,10.18938,775.61,775.32,23.68074935]
[1609609190161,10.18938,775.61,775.52,20.52154248]
[1609609191463,10.18938,775.61,775.55,20.51931768]
[1609609192061,4.175,775.61,775.55,20.51931768]
[1609609193464,4.175,775.61,775.52,6.01438]
[1609609193666,4.175,775.61,775.6,6.01438]
[1609609193864,6.01438,775.79,775.6,6.01438]
[1609609195065,6.01438,775.79,775.48,4.029]
[1609609195665,6.01438,775.59,775.48,10.04338]
[1609609195866,4.408,775.81,775.76,20.51431067]
[1609609197866,4.408,775.81,775.67,6.01438]
[1609609198667,4.408,775.81,775.48,4.029]
[1609609198866,4.408,775.81,775.76,20.51444328]
[1609609199067,6.01438,775.84,775.76,20.51444328]
[1609609200369,6.01438,775.84,775.74,20.51436523]
[1609609200569,9.42838,775.84,775.74,20.51436523]
[1609609201872,6.01438,775.75,775.74,20.51436523]
[1609609202070,6.01438,775.75,775.71,20.51399913]
[1609609207376,3.414,775.84,775.71,20.51399913]
[1609609207577,14.62326775,776.48,775.71,20.51399913]
[1609609207777,6.01438,775.88,775.73,20.5146475]
[1609609207977,9.52138,775.88,775.73,20.5146475]
[1609609209280,9.52138,775.88,775.8,20.51340686]
[1609609209980,9.52138,775.88,775.81,20.51318734]
[1609609211180,9.52138,775.88,775.79,20.51340525]
[1609609211782,6.01438,775.8,775.79,20.51340525]
[1609609212282,6.01438,775.8,775.65,23.66858387]
[1609609213383,3.507,775.88,775.65,23.66858387]
[1609609213583,78.0632,776.18,775.65,23.66858387]
[1609609213785,6.01438,775.89,775.77,6.01438]
[1609609213986,9.81138,775.89,775.77,6.01438]
[1609609215085,9.81138,775.89,775.87,20.51058235]
[1609609216386,9.81138,775.89,775.5,8.035]
[1609609216387,9.81138,775.89,775.78,23.66602696]
[1609609217288,9.81138,775.89,775.8,23.66491575]
[1609609218992,9.81138,775.89,775.81,23.66536306]
[1609609220395,9.81138,775.89,775.72,6.01438]
[1609609220396,9.81138,775.89,775.78,23.66547216]
[1609609221797,9.81138,775.89,775.8,23.66525445]
[1609609222596,9.81138,775.89,775.78,23.66491945]
[1609609223596,9.81138,775.89,775.79,23.66398623]
[1609609223998,9.81138,775.89,775.81,6.01438]
[1609609224700,3.797,775.89,775.81,6.01438]
[1609609225097,95.0571,776.24,775.81,6.01438]
[1609609225298,14.62326775,776.52,775.83,23.66345477]
[1609609225498,14.62326775,776.52,775.84,4.029]
[1609609225700,12.3877,776.53,775.84,4.029]
[1609609225900,12.3877,776.53,775.94,6.01438]
[1609609226100,14.62326775,776.7,775.94,6.01438]
[1609609226501,14.62326775,776.7,776.14,17.35147984]
[1609609226900,14.62326775,776.69,776.14,17.35147984]
[1609609227102,18.13326775,776.69,776.14,17.35147984]
[1609609227703,18.13326775,776.69,776.26,17.34835543]
[1609609227903,6.01438,776.29,776.26,17.34835543]
[1609609228102,10.91938,776.29,776.26,17.34835543]
[1609609229006,10.91938,776.29,776.25,26.51512184]
[1609609229304,4.905,776.29,776.25,26.51512184]
[1609609231409,4.905,776.29,776.28,20.49708344]
[1609609231908,3.51,776.69,776.28,20.49708344]
[1609609232109,106.9334,777.01,776.28,20.49708344]
[1609609232309,0.03869298,777.12,776.25,6.01438]
[1609609232509,11.4322,777.22,776.25,29.66384765]
[1609609232709,26.05546775,777.22,776.25,29.66384765]
[1609609233713,26.05546775,777.22,776.64,17.34261274]
[1609609233910,6.01438,776.65,776.64,17.34261274]
[1609609234110,9.80838,776.65,776.48,20.49581506]
[1609609234912,9.80838,776.65,746.66,2.02929469]
[1609609234913,9.80838,776.65,776.49,20.4961191]
[1609609235914,6.01438,776.5,776.49,20.4961191]
[1609609240529,6.01438,776.5,776.41,20.49642815]
[1609609241321,6.01438,776.5,776.49,17.3433861]
[1609609243925,6.01438,776.5,776.48,17.34417056]
[1609609244824,6.01438,776.5,776.47,17.34441107]
[1609609245624,6.01438,776.5,776.32,20.49765612]
[1609609245927,6.01438,776.33,776.32,20.49765612]
[1609609246324,10.94038,776.33,776.32,20.49765612]
[1609609248528,10.94038,776.33,776.21,6.01438]
[1609609250030,10.94038,776.33,776.17,23.65164016]
[1609609250932,4.926,776.33,776.17,23.65164016]
[1609609251231,3.794,776.65,776.17,23.65164016]
[1609609251432,14.62326775,776.94,776.18,23.65204808]
[1609609251433,3.487,776.37,776.18,23.65204808]
[1609609252035,9.50138,776.37,776.28,6.01438]
[1609609252935,3.487,776.37,776.28,6.01438]
[1609609254039,3.487,776.37,776.36,6.01438]
[1609609256342,6.01438,776.74,776.36,6.01438]
[1609609257343,14.62326775,776.96,776.22,4.029]
[1609609257645,79.0903,776.97,776.22,4.029]
[1609609257844,0.66009473,777.21,776.22,4.029]
[1609609258043,6.01438,776.68,776.64,6.01438]
[1609609258243,9.39338,776.68,776.64,6.01438]
[1609609258843,3.379,776.68,776.64,6.01438]
[1609609263050,4.463,776.85,776.64,6.01438]
[1609609264050,4.463,776.85,776.84,6.01438]
[1609609264852,4.463,776.85,776.22,4.029]
[1609609266051,4.463,776.85,776.84,6.01438]
[1609609267051,4.463,776.85,776.22,4.029]
[1609609268153,4.463,776.85,776.84,6.01438]
[1609609268353,6.01438,776.98,776.84,6.01438]
[1609609270758,6.01438,776.98,776.22,4.029]
[1609609272159,6.01438,776.98,776.75,6.01438]
[1609609273360,6.01438,776.98,776.22,4.029]
[1609609274162,6.01438,776.81,776.65,6.01438]
[1609609275468,4.628,777.09,776.65,6.01438]
[1609609275669,4.628,777.09,776.66,4.029]
[1609609275971,0.66009473,777.21,776.66,4.029]
[1609609276171,6.01438,776.91,776.82,6.01438]
[1609609276671,4.22,776.96,776.82,6.01438]
[1609609278273,6.01438,776.92,776.24,26.7848188]
[1609609278476,6.01438,776.92,776.22,4.029]
[1609609278477,6.01438,776.92,776.85,23.6362316]
[1609609280074,4.22,776.96,776.85,23.6362316]
[1609609281377,6.01438,777.0,776.85,23.6362316]
[1609609284980,6.01438,777.0,776.86,20.4828706]
[1609609286180,15.0,777.62,776.99,20.48337877]
[1609609286378,15.0,777.62,777.0,4.029]
[1609609286778,15.0,777.61,777.0,4.029]
[1609609286979,19.539,777.61,777.0,4.029]
[1609609287479,19.539,777.61,777.15,17.33176507]
[1609609288178,19.539,777.61,777.17,17.33161296]
[1609609290182,6.01438,777.18,777.17,17.33161296]
[1609609290580,9.26838,777.18,777.17,17.33161296]
[1609609291583,24.26838,777.18,777.16,17.33227317]
[1609609292583,99.0534,777.17,777.16,17.33227317]
[1609609292785,99.0534,777.17,777.0,24.51259556]
[1609609292786,114.0534,777.17,777.11,17.33399237]
[1609609292983,15.0,777.17,777.11,17.33399237]
[1609609294485,15.0,777.17,776.97,17.33633038]
[1609609295985,15.0,777.17,776.65,4.029]
[1609609295986,15.0,777.17,776.88,17.33730824]
[1609609296387,6.01438,776.89,776.88,17.33730824]
[1609609296588,25.69438,776.89,776.88,17.33730824]
[1609609297590,25.69438,776.89,776.82,17.3381275]
[1609609298490,25.69438,776.89,776.66,20.49051431]
[1609609298491,25.69438,776.89,776.77,17.33864126]
[1609609299293,25.69438,776.89,776.71,17.33929374]
[1609609299794,105.7427,776.72,776.71,17.33929374]
[1609609299994,124.6837,776.72,776.71,17.33929374]
[1609609300195,124.6837,776.72,776.55,20.4918926]
[1609609300396,6.01438,776.56,776.55,20.4918926]
[1609609300596,38.93968,776.56,776.55,20.4918926]
[1609609300795,38.93968,776.56,776.54,20.49782305]
[1609609301996,38.93968,776.56,776.29,20.49946705]
[1609609302296,6.01438,776.3,776.29,20.49946705]
[1609609302495,25.04338,776.3,776.29,20.49946705]
[1609609303098,25.04338,776.3,776.25,20.50041582]
[1609609303296,10.04338,776.3,776.25,20.50041582]
[1609609304097,10.04338,776.3,776.22,20.49715257]
[1609609304597,4.029,776.3,776.22,20.49715257]
[1609609305197,4.029,776.3,776.23,23.64658984]
[1609609306097,4.02898154,776.3,776.23,26.79758861]
[1609609306297,4.02898154,776.3,776.26,6.01438]
[1609609306600,6.01438,776.48,776.26,6.01438]
[1609609307499,6.01438,776.48,776.23,26.79758861]
[1609609308099,6.01438,776.48,776.24,26.79364594]
[1609609308301,6.01438,776.48,776.44,6.01438]
[1609609308900,4.41,776.56,776.44,6.01438]
[1609609309103,3.941,776.72,776.44,6.01438]
[1609609309299,15.0,777.26,776.44,6.01438]
[1609609310000,15.0,777.39,776.44,6.01438]
[1609609310300,6.01438,776.98,776.86,6.01438]
[1609609310501,9.43538,776.98,776.86,6.01438]
[1609609315104,3.421,776.98,776.86,6.01438]
[1609609315506,88.1315,777.4,776.86,6.01438]
[1609609315704,4.702,776.99,776.86,6.01438]
[1609609316008,4.702,776.99,776.91,23.63227645]
[1609609317707,15.0,778.03,776.91,23.63227645]
[1609609317908,11.4325,778.01,776.91,23.63227645]
[1609609318108,1.45086521,777.92,776.93,23.6192821]
[1609609318308,6.01438,777.69,777.32,6.01438]
[1609609318508,8.98538,777.69,777.32,6.01438]
[1609609318910,8.98538,777.69,777.65,17.31735991]
[1609609321914,8.98538,777.69,777.59,20.46387198]
[1609609322814,6.01438,777.69,777.59,20.46387198]
[1609609323013,3.962,777.97,777.59,20.46387198]
[1609609323214,3.962,777.97,777.66,20.46161523]
[1609609323915,3.962,777.97,777.92,17.2935041]
[1609609324314,1.45582664,778.61,777.92,17.2935041]
[1609609324514,6.01438,777.97,777.92,17.2935041]
[1609609325018,6.01438,777.97,777.82,6.01438]
[1609609325817,6.01438,777.97,777.82,26.42808513]
[1609609326018,6.01438,777.97,777.82,20.41370513]
[1609609326423,6.01438,777.83,777.82,20.41370513]
[1609609327118,6.01438,777.83,777.74,20.42148875]
[1609609327719,6.01438,777.83,777.79,17.27701916]
[1609609328421,4.776,778.04,777.79,17.27701916]
[1609609328625,4.776,778.04,777.58,6.01438]
[1609609328626,4.776,778.04,777.73,20.39601369]
[1609609330224,4.776,778.04,777.89,17.25986114]
[1609609330426,6.01438,777.9,777.89,17.25986114]
[1609609330927,21.01438,777.9,777.89,17.25986114]
[1609609331127,21.01438,777.9,777.8,17.27279748]
[1609609331927,21.01438,777.9,777.65,20.41330611]
[1609609332227,21.01438,777.9,777.7,17.28516605]
[1609609332429,6.01438,777.71,777.7,17.28516605]
[1609609332830,6.01438,777.71,777.6,17.29605349]
[1609609333928,6.01438,777.71,777.57,17.29947666]
[1609609334531,6.01438,777.58,777.57,17.29947666]
[1609609335133,6.01438,777.58,777.46,20.43597442]
[1609609336531,6.01438,777.58,776.99,29.86796261]
[1609609336532,6.01438,777.58,777.44,23.59792114]
[1609609337731,4.161,777.83,777.44,23.59792114]
[1609609337933,4.776,778.04,777.44,23.59792114]
[1609609338132,12.5605,778.45,777.48,23.589299]
[1609609338531,6.01438,777.95,777.48,23.589299]
[1609609338731,9.13638,777.95,777.48,23.589299]
[1609609340534,6.01438,777.77,777.68,6.01438]
[1609609341534,6.01438,777.77,777.48,23.589299]
[1609609342435,6.01438,777.5,777.48,23.589299]
[1609609342735,6.01438,777.5,777.33,6.01438]
[1609609342736,6.01438,777.5,777.49,26.75715325]
[1609609343834,3.122,777.95,777.49,26.75715325]
[1609609344034,19.356,778.15,777.49,26.75715325]
[1609609344435,6.01438,777.78,777.64,6.01438]
[1609609345438,6.01438,777.78,777.74,20.45987552]
[1609609347139,3.951,777.99,777.74,20.45987552]
[1609609347642,3.951,777.99,777.72,20.45836059]
[1609609347841,3.951,777.99,777.41,26.75324077]
[1609609348441,6.01438,777.6,777.53,6.01438]
[1609609349641,6.01438,777.6,777.45,26.7416834]
[1609609350440,6.01438,777.6,746.0,3.0]
[1609609350441,15.0,777.82,777.59,23.60354345]
[1609609351444,15.0,777.82,777.51,20.46578049]
[1609609352642,6.01438,777.52,777.51,20.46578049]
[1609609352844,6.01438,777.52,777.42,20.46760368]
[1609609353044,15.0,777.51,777.42,20.46760368]
[1609609353845,15.0,777.51,777.11,26.76532789]
[1609609354046,6.01438,777.52,777.11,26.76532789]
[1609609354446,15.0,777.58,777.49,17.31861231]
[1609609355048,4.684,777.59,777.49,17.31861231]
[1609609356050,4.684,777.59,777.36,20.46736591]
[1609609356448,6.01438,777.37,777.36,20.46736591]
[1609609357750,6.01438,777.37,777.21,23.61619143]
[1609609357951,4.684,777.59,777.21,23.61619143]
[1609609358152,15.0,777.81,777.21,23.61619143]
[1609609358554,6.01438,777.32,777.24,23.61551397]
[1609609359555,6.01438,777.32,746.06,0.10447658]
[1609609359556,6.01438,777.32,777.23,23.61524052]
[1609609360458,6.01438,777.32,777.26,23.61539029]
[1609609360657,3.841,777.63,777.26,23.61539029]
[1609609361258,3.841,777.63,777.56,17.31848219]
[1609609362559,6.01438,777.57,777.4,20.46729714]
[1609609362760,6.01438,777.57,777.24,23.61611208]
[1609609363759,6.01438,777.57,777.54,17.31529753]
[1609609364861,6.01438,777.57,777.49,20.46427025]
[1609609366561,9.27738,777.57,777.49,20.46427025]
[1609609367365,9.27738,777.57,746.06,0.10447658]
[1609609367366,9.27738,777.57,777.55,17.31790012]
[1609609368065,15.0,777.56,777.55,17.31790012]
[1609609368565,15.0,777.56,777.46,17.31876678]
[1609609370668,6.01438,777.47,777.46,17.31876678]
[1609609370866,21.01438,777.47,777.46,17.31876678]
[1609609372367,21.01438,777.47,777.43,17.3233385]
[1609609372767,15.0,777.46,777.43,17.3233385]
[1609609373668,6.01438,777.47,777.27,17.32156657]
[1609609374571,6.01438,777.28,777.27,17.32156657]
[1609609374970,6.01438,777.28,776.9,6.01438]
[1609609374971,6.01438,777.28,777.24,20.46957067]
[1609609376573,6.01438,777.28,777.27,20.46999949]
[1609609378374,6.01438,777.28,777.23,20.47100767]
[1609609378975,21.01438,777.28,777.23,8.11800767]
[1609609379876,6.01438,777.28,777.23,8.11800767]
[1609609381881,6.01438,777.28,776.98,23.61990746]
[1609609382579,6.01438,776.99,776.98,23.61990746]
[1609609382779,6.01438,776.99,776.83,26.76922846]
[1609609382780,6.01438,776.99,776.84,26.76928942]
[1609609384185,6.01438,776.99,776.98,23.62109487]
[1609609387787,6.01438,776.99,776.82,26.77057419]
[1609609388587,18.049,777.41,776.82,26.77057419]
[1609609388588,6.01438,776.83,776.82,26.77057419]
[1609609398710,6.01438,776.83,776.82,32.78495419]
[1609609400514,3.941,777.22,776.82,32.78495419]
[1609609400716,6.01438,776.94,776.82,32.78495419]
[1609609401914,6.01438,776.94,776.82,6.01438]
[1609609402918,3.049,777.41,776.82,32.78259304]
[1609609403121,12.5496,777.55,776.82,32.78259304]
[1609609403818,15.0,777.82,776.82,32.78259304]
[1609609404019,11.9744,777.81,776.82,32.78259304]
[1609609404219,11.9744,777.81,776.83,26.76463174]
[1609609404220,15.0,777.8,776.83,26.76463174]
[1609609404721,6.01438,777.44,777.25,6.01438]
[1609609405123,6.01438,777.44,777.41,17.30988183]
[1609609406524,15.0,777.98,777.41,17.30988183]
[1609609406725,6.01438,777.48,777.45,6.01438]
[1609609406924,3.529,777.73,777.45,6.01438]
[1609609407426,3.529,777.73,777.58,17.28700077]
[1609609408326,15.0,778.09,777.58,17.28700077]
[1609609408727,6.01438,777.59,777.58,17.28700077]
[1609609414737,6.01438,777.59,777.11,30.74527392]
[1609609414738,6.01438,777.59,777.49,20.42011993]
[1609609415836,6.01438,777.59,777.46,20.36407643]
[1609609418738,6.01438,777.59,777.52,6.01438]
[1609609419537,6.01438,777.59,777.54,20.35159229]
[1609609420237,6.01438,777.59,777.57,20.30369702]
[1609609422037,6.01438,777.59,777.11,4.029]
[1609609422038,6.01438,777.59,777.58,20.30192961]
[1609609422739,6.01438,777.59,777.56,20.29826798]
[1609609422939,15.0,777.58,777.56,20.29826798]
[1609609424442,15.0,777.58,777.46,20.31350972]
[1609609424842,6.01438,777.47,777.46,20.31350972]
[1609609425546,6.01438,777.47,777.37,20.34041258]
[1609609426845,6.01438,777.38,777.37,20.34041258]
[1609609427745,6.01438,777.38,777.11,4.029]
[1609609427746,6.01438,777.38,777.35,20.34674638]
[1609609428747,6.01438,777.38,777.36,20.32768176]
[1609609430349,6.01438,777.38,777.26,6.01438]
[1609609430648,6.01438,777.38,777.22,23.45694584]
[1609609431053,6.01438,777.38,777.23,23.45242754]
[1609609432467,6.01438,777.38,777.34,20.31988602]
[1609609432863,6.01438,777.38,777.36,6.01438]
[1609609433064,6.01438,777.38,777.34,20.31988602]
[1609609433458,6.01438,777.38,777.22,23.44009823]
[1609609434358,6.01438,777.38,777.35,20.29096622]
[1609609435357,6.01438,777.38,777.34,20.28858419]
[1609609439060,3.004,777.74,777.34,20.28858419]
[1609609439462,4.401,777.9,777.34,20.28858419]
[1609609439661,15.0,778.09,777.35,4.029]
[1609609439863,15.0,778.09,777.35,24.31555344]
[1609609440861,6.01438,777.54,777.52,6.01438]
[1609609442260,6.01438,777.54,777.43,20.258368]
[1609609442462,6.01438,777.54,777.45,20.26843857]
[1609609442860,6.01438,777.54,777.53,6.01438]
[1609609444459,6.01438,777.54,777.45,20.26843857]
[1609609444763,6.01438,777.54,777.46,20.29711811]
[1609609445562,6.01438,777.54,777.49,20.27386724]
[1609609446363,6.01438,777.54,777.48,20.27933195]
[1609609446663,4.856,777.65,777.48,20.27933195]
[1609609446865,6.01438,777.64,777.48,20.27933195]
[1609609447764,6.01438,777.64,777.47,20.27363181]
[1609609449064,6.01438,777.64,777.44,6.01438]
[1609609449065,6.01438,777.64,777.5,20.25340201]
[1609609449969,6.01438,777.64,777.63,17.13944607]
[1609609451568,21.01438,777.64,777.63,17.13944607]
[1609609452470,21.01438,777.64,777.56,17.13107268]
[1609609453072,15.0,777.63,777.56,17.13107268]
[1609609454572,15.0,777.63,777.45,17.15299822]
[1609609454970,6.01438,777.46,777.45,17.15299822]
[1609609455171,8.99438,777.46,777.45,17.15299822]
[1609609455372,8.99438,777.46,777.42,17.16471278]
[1609609455973,23.99438,777.46,777.42,17.16471278]
[1609609456474,23.99438,777.46,777.41,17.17373834]
[1609609457475,23.99438,777.46,777.39,17.15970352]
[1609609458780,23.99438,777.46,777.33,17.16701485]
[1609609458978,6.01438,777.34,777.33,17.16701485]
[1609609459176,21.01438,777.34,777.33,17.16701485]